fUST/lending_fUST_20250125
["ID","MTS","AMOUNT","RATE_DAILY","PERIOD"]
[350317939,1737786632284,-500.0,0.00017755,2]
[350317940,1737786632293,-500.0,0.00017756,2]
[350317941,1737786632303,-2258.34619535,0.00017756,2]
[350317942,1737786632315,-3420.71380465,0.00017756,2]
[350317943,1737786632325,-2561.7,0.00017756,2]
[350317944,1737786632334,-500.0,0.00017756,2]
[350317945,1737786632344,-500.0,0.00017756,2]
[350317948,1737786632354,-500.0,0.00017756,2]
[350317950,1737786632363,-500.0,0.00017756,2]
[350317951,1737786632373,-1148.61683395,0.00017756,2]
[350317952,1737786632397,-970.08316605,0.00017756,2]
[350317953,1737786632406,-500.0,0.00017756,2]
[350317954,1737786632415,-398.9508736,0.00017756,2]
[350317955,1737786632426,-475.5091264,0.00017756,2]
[350317957,1737786632435,-1277.53,0.00017756,2]
[350317958,1737786632444,-944.96,0.00017756,2]
[350317960,1737786632454,-500.0,0.00017756,2]
[350317962,1737786632463,-270.72201336,0.00017756,2]
[350317993,1737786638166,-500.0,0.00017755,2]
[350317994,1737786638176,-560.53,0.00017755,2]
[350317995,1737786638186,-229.27798664,0.00017756,2]
[350317996,1737786638195,-500.0,0.00017756,2]
[350317997,1737786638204,-1660.92,0.00017756,2]
[350317998,1737786638214,-860.15,0.00017756,2]
[350317999,1737786638223,-500.0,0.00017756,2]
[350318000,1737786638232,-383.30629666,0.00017756,2]
[350318001,1737786638241,-292.36575598,0.00017756,2]
[350318002,1737786638251,-500.0,0.00017756,2]
[350318003,1737786638260,-500.0,0.00017756,2]
[350318004,1737786638269,-500.0,0.00017756,2]
[350318005,1737786638278,-395.06666075,0.00017756,2]
[350318006,1737786638288,-500.0,0.00017756,2]
[350318007,1737786638297,-500.0,0.00017756,2]
[350318008,1737786638306,-216.55360523,0.00017756,2]
[350318009,1737786638316,-500.0,0.00017756,2]
[350318010,1737786638325,-2658.74,0.00017756,2]
[350318012,1737786638334,-500.0,0.00017756,2]
[350318014,1737786638343,-3871.95,0.00017756,2]
[350318015,1737786638352,-500.0,0.00017756,2]
[350318017,1737786638361,-1983.93,0.00017756,2]
[350318019,1737786638370,-500.0,0.00017756,2]
[350318020,1737786638379,-500.0,0.00017756,2]
[350318022,1737786638388,-1000.0,0.00017756,7]
[350318024,1737786638397,-1282.39,0.00017756,2]
[350318026,1737786638406,-1110.88,0.00017756,2]
[350318027,1737786638415,-1485.37538204,0.00017756,2]
[350318096,1737786868634,223.806,0.0001736,2]
[350318097,1737786884216,348.78626811,0.00017478,2]
[350318098,1737786900777,348.78626811,0.00017478,2]
[350318099,1737786918000,348.78626811,0.00017478,2]
[350318100,1737786935185,231.849,0.0001736,2]
[350318101,1737786936304,484.36309856,0.00017477,2]
[350318102,1737786952755,484.36309856,0.00017477,2]
[350318103,1737786970142,484.36309856,0.00017477,2]
[350318108,1737787452037,8032.32420548,0.00017301,2]
[350318113,1737787500197,167.264586,0.00013973,2]
[350318123,1737787602375,222.356,0.0001736,2]
[350318128,1737787814260,262.962442,0.00016753,2]
[350318186,1737787832351,-423.51899709,0.00017653,2]
[350318188,1737787832361,-484.36309856,0.00017654,2]
[350318190,1737787832372,-2501.50859189,0.00017654,2]
[350318192,1737787832382,-172.80445974,0.00017654,2]
[350318194,1737787832392,-300.0,0.00017752,2]
[350318196,1737787832401,-500.0,0.00017752,2]
[350318198,1737787832412,-1292.67437846,0.00017753,2]
[350318200,1737787832421,-500.0,0.00017753,2]
[350318201,1737787832431,-638.46,0.00017753,2]
[350318203,1737787832441,-500.0,0.00017753,2]
[350318205,1737787832452,-500.0,0.00017753,2]
[350318207,1737787832461,-650.31,0.00017753,2]
[350318209,1737787832471,-407.07136487,0.00017753,2]
[350318210,1737787832481,-218.53261366,0.00017753,2]
[350318212,1737787832491,-2547.89,0.00017753,2]
[350318214,1737787832500,-6503.24,0.00017753,2]
[350318216,1737787832510,-500.0,0.00017753,2]
[350318218,1737787832521,-500.0,0.00017753,2]
[350318219,1737787832531,-500.0,0.00017753,2]
[350318220,1737787832542,-500.0,0.00017753,2]
[350318221,1737787832552,-2932.3,0.00017753,2]
[350318223,1737787832561,-500.0,0.00017753,2]
[350318225,1737787832571,-500.0,0.00017753,2]
[350318227,1737787832583,-500.0,0.00017753,2]
[350318230,1737787832593,-2464.86,0.00017753,2]
[350318231,1737787832603,-500.0,0.00017753,2]
[350318234,1737787832613,-1600.49,0.00017753,2]
[350318236,1737787832622,-1459.91,0.00017753,2]
[350318238,1737787832631,-500.0,0.00017753,2]
[350318240,1737787832640,-964.73,0.00017753,2]
[350318242,1737787832649,-1066.79,0.00017753,2]
[350318244,1737787832658,-335.63101421,0.00017753,2]
[350318246,1737787832667,-500.0,0.00017753,2]
[350318248,1737787832677,-500.0,0.00017753,2]
[350318250,1737787832686,-500.0,0.00017753,2]
[350318252,1737787832695,-500.0,0.00017753,2]
[350318254,1737787832705,-500.0,0.00017753,2]
[350318256,1737787832714,-500.0,0.00017753,2]
[350318258,1737787832723,-500.0,0.00017753,2]
[350318260,1737787832732,-500.0,0.00017753,2]
[350318262,1737787832741,-500.0,0.00017753,2]
[350318264,1737787832751,-661.88,0.00017753,2]
[350318266,1737787832761,-1591.71,0.00017753,2]
[350318268,1737787832770,-500.0,0.00017753,2]
[350318270,1737787832780,-500.0,0.00017753,2]
[350318272,1737787832789,-500.0,0.00017753,2]
[350318274,1737787832799,-461.2056757,0.00017753,2]
[350318276,1737787832808,-1001.36,0.00017753,2]
[350318278,1737787832818,-3072.78,0.00017753,2]
[350318280,1737787832827,-3073.01,0.00017753,2]
[350318281,1737787832837,-1000.0,0.00017753,7]
[350318282,1737787832847,-500.0,0.00017753,2]
[350318283,1737787832856,-4204.43,0.00017753,2]
[350318284,1737787832865,-1257.63,0.00017753,2]
[350318285,1737787832875,-500.0,0.00017753,2]
[350318286,1737787832884,-500.0,0.00017753,2]
[350318287,1737787832894,-1488.89,0.00017753,2]
[350318288,1737787832903,-500.0,0.00017753,2]
[350318289,1737787832913,-500.0,0.00017753,2]
[350318290,1737787832923,-500.0,0.00017753,2]
[350318291,1737787832932,-500.0,0.00017753,2]
[350318292,1737787832942,-500.0,0.00017753,2]
[350318293,1737787832951,-500.0,0.00017753,2]
[350318294,1737787833115,-431.89414839,0.00017753,2]
[350318295,1737787833158,-976.92585161,0.00017753,2]
[350318296,1737787833168,-500.0,0.00017753,2]
[350318297,1737787833178,-614.16,0.00017753,2]
[350318298,1737787833188,-3105.46,0.00017753,2]
[350318299,1737787833199,-339.84638065,0.00017753,2]
[350318300,1737787833209,-500.0,0.00017753,2]
[350318301,1737787833219,-1797.26527782,0.00017753,2]
[350318302,1737787833231,-223.16472218,0.00017753,2]
[350318303,1737787833241,-712.15,0.00017753,2]
[350318304,1737787833250,-559.59,0.00017753,2]
[350318305,1737787833260,-1613.92,0.00017753,2]
[350318306,1737787833270,-246.28373392,0.00017753,2]
[350318307,1737787833280,-5182.73405278,0.00017754,5]
[350318308,1737787833291,-500.0,0.00017754,2]
[350318309,1737787833300,-588.88,0.00017754,2]
[350318310,1737787833310,-500.0,0.00017754,2]
[350318311,1737787833319,-1022.61,0.00017754,2]
[350318312,1737787833329,-542.42,0.00017754,2]
[350318313,1737787833340,-500.0,0.00017754,2]
[350318314,1737787833350,-663.4,0.00017754,2]
[350318315,1737787833359,-500.0,0.00017754,2]
[350318316,1737787833369,-370.09466567,0.00017754,2]
[350318317,1737787833379,-1259.61,0.00017754,2]
[350318318,1737787833389,-792.15,0.00017754,2]
[350318319,1737787833398,-500.0,0.00017754,2]
[350318320,1737787833408,-888.66,0.00017754,2]
[350318321,1737787833418,-768.81,0.00017754,2]
[350318322,1737787833428,-500.0,0.00017754,2]
[350318323,1737787833439,-500.0,0.00017754,2]
[350318324,1737787833449,-357.92355443,0.00017754,2]
[350318325,1737787833459,-839.02,0.00017754,2]
[350318326,1737787833469,-711.9,0.00017754,2]
[350318327,1737787833480,-500.0,0.00017754,2]
[350318328,1737787833489,-500.0,0.00017754,2]
[350318329,1737787833500,-316.13356998,0.00017754,2]
[350318330,1737787833510,-500.0,0.00017754,2]
[350318331,1737787833520,-636.27,0.00017754,2]
[350318332,1737787833530,-579.68,0.00017754,2]
[350318333,1737787833540,-1192.01,0.00017754,2]
[350318334,1737787833550,-500.0,0.00017754,2]
[350318335,1737787833560,-500.0,0.00017754,2]
[350318336,1737787833571,-739.92,0.00017754,2]
[350318337,1737787833585,-500.0,0.00017754,2]
[350318338,1737787833595,-780.46,0.00017754,2]
[350318339,1737787833605,-500.0,0.00017754,2]
[350318340,1737787833615,-500.0,0.00017754,2]
[350318341,1737787833626,-500.0,0.00017754,2]
[350318342,1737787833636,-500.0,0.00017754,2]
[350318343,1737787833646,-500.0,0.00017754,2]
[350318344,1737787833656,-1159.62,0.00017754,2]
[350318345,1737787833666,-689.32,0.00017754,2]
[350318346,1737787833676,-1659.36,0.00017754,2]
[350318347,1737787833687,-500.0,0.00017754,2]
[350318348,1737787833696,-500.0,0.00017754,2]
[350318349,1737787833706,-500.0,0.00017754,2]
[350318350,1737787833717,-500.0,0.00017754,2]
[350318351,1737787833727,-578.0,0.00017754,2]
[350318352,1737787833737,-500.0,0.00017754,2]
[350318353,1737787833746,-500.0,0.00017754,2]
[350318354,1737787833756,-16899.84,0.00017754,2]
[350318355,1737787833766,-645.96,0.00017754,2]
[350318356,1737787833776,-190.39778562,0.00017754,2]
[350318357,1737787833786,-500.0,0.00017754,2]
[350318358,1737787833796,-1423.31,0.00017754,2]
[350318359,1737787833805,-500.0,0.00017754,2]
[350318360,1737787833815,-13249.8,0.00017754,2]
[350318361,1737787833824,-791.94,0.00017754,2]
[350318362,1737787833834,-677.76,0.00017754,2]
[350318363,1737787833844,-500.0,0.00017754,2]
[350318364,1737787833853,-540.55582705,0.00017754,2]
[350318365,1737787833866,-296.65417295,0.00017754,2]
[350318366,1737787833876,-500.0,0.00017754,2]
[350318367,1737787833886,-500.0,0.00017754,2]
[350318368,1737787833896,-505.11,0.00017754,2]
[350318369,1737787833906,-118.71271053,0.00017754,2]
[350318405,1737787838201,-883.29091358,0.00017753,5]
[350318406,1737787838211,-623.22,0.00017753,2]
[350318407,1737787838221,-381.28728947,0.00017754,2]
[350318408,1737787838233,-2878.71,0.00017754,2]
[350318409,1737787838243,-816.48,0.00017754,2]
[350318410,1737787838256,-1177.72,0.00017754,2]
[350318411,1737787838270,-500.0,0.00017754,2]
[350318412,1737787838280,-500.0,0.00017754,2]
[350318413,1737787838289,-47109.38,0.00017754,2]
[350318414,1737787838299,-2478.67,0.00017754,2]
[350318415,1737787838308,-500.0,0.00017754,2]
[350318416,1737787838319,-500.0,0.00017754,2]
[350318417,1737787838329,-500.0,0.00017754,2]
[350318418,1737787838338,-404.50409217,0.00017754,2]
[350318419,1737787838350,-95.49590783,0.00017754,2]
[350318420,1737787838359,-500.0,0.00017754,2]
[350318421,1737787838369,-500.0,0.00017754,2]
[350318422,1737787838378,-500.0,0.00017754,2]
[350318423,1737787838388,-500.0,0.00017754,2]
[350318424,1737787838397,-500.0,0.00017754,2]
[350318425,1737787838406,-500.0,0.00017754,2]
[350318426,1737787838416,-6854.32529609,0.00017754,2]
[350318427,1737787838428,-6784.36470391,0.00017754,2]
[350318428,1737787838438,-201.33921011,0.00017754,2]
[350318429,1737787838447,-500.0,0.00017754,2]
[350318430,1737787838456,-1045.53,0.00017754,2]
[350318431,1737787838466,-500.0,0.00017754,2]
[350318432,1737787838476,-1372.29,0.00017754,2]
[350318433,1737787838485,-791.2,0.00017754,2]
[350318434,1737787838495,-500.0,0.00017754,2]
[350318435,1737787838504,-970.78,0.00017754,2]
[350318436,1737787838513,-500.0,0.00017754,2]
[350318437,1737787838523,-520.68,0.00017754,2]
[350318438,1737787838532,-575.01,0.00017754,2]
[350318439,1737787838542,-502.66595979,0.00017754,2]
[350318440,1737787838551,-613.02,0.00017755,2]
[350318441,1737787838561,-500.0,0.00017755,2]
[350318442,1737787838570,-500.0,0.00017755,2]
[350318443,1737787838584,-500.0,0.00017755,2]
[350318444,1737787838593,-500.0,0.00017755,2]
[350318445,1737787838602,-227.60682575,0.00017755,2]
[350318446,1737787838615,-749.04,0.00017755,2]
[350318447,1737787838624,-571.12687157,0.00017755,2]
[350318448,1737787838634,-500.0,0.00017755,2]
[350318449,1737787838645,-500.0,0.00017755,2]
[350318450,1737787838655,-500.0,0.00017755,2]
[350318451,1737787838665,-330.35389272,0.00017755,2]
[350318452,1737787838677,-169.64610728,0.00017755,2]
[350318453,1737787838688,-500.0,0.00017755,2]
[350318454,1737787838697,-500.0,0.00017755,2]
[350318455,1737787838708,-500.0,0.00017755,2]
[350318456,1737787838718,-500.0,0.00017755,2]
[350318457,1737787838728,-732.77,0.00017755,2]
[350318458,1737787838737,-500.0,0.00017755,2]
[350318459,1737787838747,-500.0,0.00017755,2]
[350318460,1737787838757,-500.0,0.00017755,2]
[350318461,1737787838768,-806.68,0.00017755,2]
[350318462,1737787838779,-615.31,0.00017755,2]
[350318463,1737787838789,-500.0,0.00017755,2]
[350318464,1737787838799,-500.0,0.00017755,2]
[350318465,1737787838809,-509.96,0.00017755,2]
[350318466,1737787838818,-500.0,0.00017755,2]
[350318467,1737787838828,-500.0,0.00017755,2]
[350318468,1737787838837,-500.0,0.00017755,2]
[350318469,1737787838846,-500.0,0.00017755,2]
[350318470,1737787838856,-500.0,0.00017755,2]
[350318471,1737787838865,-748.64,0.00017755,2]
[350318472,1737787838875,-500.0,0.00017755,2]
[350318473,1737787838884,-500.0,0.00017755,2]
[350318474,1737787838893,-500.0,0.00017755,2]
[350318475,1737787838903,-500.0,0.00017755,2]
[350318476,1737787838912,-448.56827828,0.00017755,2]
[350318477,1737787838922,-705.46,0.00017755,2]
[350318478,1737787838931,-502.32481971,0.00017755,2]
[350318479,1737787838941,-635.25,0.00017755,2]
[350318480,1737787838950,-500.0,0.00017755,2]
[350318481,1737787838959,-500.0,0.00017755,2]
[350318482,1737787838969,-500.0,0.00017755,2]
[350318483,1737787838978,-501.69327094,0.00017755,2]
[350318484,1737787838988,-500.0,0.00017755,2]
[350318485,1737787838997,-500.0,0.00017755,2]
[350318486,1737787839006,-500.0,0.00017755,2]
[350318487,1737787839015,-500.0,0.00017755,2]
[350318488,1737787839025,-1831.53,0.00017755,2]
[350318489,1737787839034,-504.98460337,0.00017755,2]
[350318490,1737787839043,-501.00463615,0.00017755,2]
[350318491,1737787839052,-500.0,0.00017755,2]
[350318492,1737787839062,-848.44,0.00017755,2]
[350318493,1737787839071,-500.0,0.00017755,2]
[350318494,1737787839080,-500.0,0.00017755,2]
[350318495,1737787839219,-500.0,0.00017755,2]
[350318496,1737787839229,-1805.76,0.00017755,2]
[350318497,1737787839239,-500.0,0.00017755,2]
[350318498,1737787839249,-505.08,0.00017755,2]
[350318499,1737787839258,-500.0,0.00017755,2]
[350318500,1737787839267,-500.0,0.00017755,2]
[350318501,1737787839276,-633.39,0.00017755,2]
[350318502,1737787839286,-500.0,0.00017755,2]
[350318503,1737787839296,-500.0,0.00017755,2]
[350318504,1737787839306,-1038.97,0.00017755,2]
[350318505,1737787839315,-800.55,0.00017755,2]
[350318506,1737787839325,-500.0,0.00017755,2]
[350318507,1737787839335,-500.0,0.00017755,2]
[350318508,1737787839344,-938.41,0.00017755,2]
[350318509,1737787839354,-500.0,0.00017755,2]
[350318510,1737787839363,-500.0,0.00017755,2]
[350318511,1737787839373,-500.0,0.00017755,2]
[350318512,1737787839383,-500.0,0.00017755,2]
[350318513,1737787839392,-543.78,0.00017755,2]
[350318514,1737787839402,-500.0,0.00017755,2]
[350318515,1737787839411,-1815.38,0.00017755,2]
[350318516,1737787839420,-1051.99,0.00017755,2]
[350318517,1737787839430,-500.0,0.00017755,2]
[350318518,1737787839440,-525.10126798,0.00017755,2]
[350318519,1737787839450,-500.0,0.00017755,2]
[350318520,1737787839460,-500.0,0.00017755,2]
[350318521,1737787839469,-965.58,0.00017755,2]
[350318522,1737787839483,-975.35,0.00017755,2]
[350318523,1737787839493,-500.0,0.00017755,2]
[350318524,1737787839503,-500.0,0.00017755,2]
[350318525,1737787839513,-500.0,0.00017755,2]
[350318526,1737787839523,-500.0,0.00017755,2]
[350318527,1737787839533,-500.0,0.00017755,2]
[350318528,1737787839543,-500.0,0.00017755,2]
[350318529,1737787839565,-680.66,0.00017755,2]
[350318530,1737787839579,-500.0,0.00017755,2]
[350318531,1737787839589,-500.0,0.00017755,2]
[350318532,1737787839600,-500.0,0.00017755,2]
[350318533,1737787839610,-500.0,0.00017755,2]
[350318534,1737787839619,-2568.79,0.00017755,2]
[350318535,1737787839630,-330.38914882,0.00017755,2]
[350318536,1737787839640,-500.0,0.00017755,2]
[350318537,1737787839649,-670.28,0.00017755,2]
[350318538,1737787839661,-625.63,0.00017755,2]
[350318539,1737787839671,-500.0,0.00017755,2]
[350318540,1737787839681,-500.0,0.00017755,2]
[350318541,1737787839695,-595.89,0.00017755,2]
[350318542,1737787839706,-699.83,0.00017755,2]
[350318543,1737787839715,-500.0,0.00017755,2]
[350318544,1737787839725,-500.0,0.00017755,2]
[350318545,1737787839735,-500.0,0.00017756,2]
[350318546,1737787839746,-502.36438095,0.00017757,2]
[350318547,1737787839756,-503.59783161,0.00017757,2]
[350318548,1737787839766,-501.87761352,0.00017757,2]
[350318549,1737787839777,-500.0,0.00017757,2]
[350318550,1737787839786,-500.0,0.00017757,2]
[350318551,1737787839796,-502.54787831,0.00017757,2]
[350318552,1737787839806,-500.0,0.00017757,2]
[350318553,1737787839816,-500.0,0.00017757,2]
[350318554,1737787839827,-504.00889687,0.00017757,2]
[350318555,1737787839838,-501.71050331,0.00017757,2]
[350318556,1737787839847,-501.77718779,0.00017757,2]
[350318557,1737787839857,-503.54681865,0.00017757,2]
[350318558,1737787839867,-500.0,0.00017757,2]
[350318559,1737787839877,-500.0,0.00017757,2]
[350318560,1737787839887,-502.59010791,0.00017757,2]
[350318561,1737787839897,-510.62049,0.00017757,2]
[350318562,1737787839907,-632.92704558,0.00017757,2]
[350318563,1737787839917,-501.90805938,0.00017757,2]
[350318564,1737787839927,-504.20323663,0.00017757,2]
[350318565,1737787839939,-505.71346227,0.00017757,2]
[350318566,1737787839949,-502.23257628,0.00017757,2]
[350318567,1737787839959,-512.0629643,0.00017757,2]
[350318569,1737787839970,-218.53171221,0.00017757,2]
[350318571,1737787839979,-503.78142801,0.00017757,2]
[350318573,1737787839988,-412.84799999,0.00017757,2]
[350318575,1737787839998,-504.82682776,0.00017757,2]
[350318576,1737787840011,-595.64301151,0.00017757,2]
[350318577,1737787840022,-502.65866558,0.00017757,2]
[350318578,1737787840032,-500.0,0.00017757,2]
[350318579,1737787840041,-500.0,0.00017889,2]
[350318580,1737787840051,-500.0,0.0001789,2]
[350318581,1737787840061,-638.46,0.0001789,2]
[350318582,1737787840071,-500.0,0.0001789,2]
[350318583,1737787840080,-500.0,0.0001789,2]
[350318584,1737787840090,-2547.89,0.0001789,2]
[350318585,1737787840100,-6503.24,0.0001789,2]
[350318586,1737787840110,-500.0,0.0001789,2]
[350318587,1737787840120,-500.0,0.0001789,2]
[350318588,1737787840129,-500.0,0.0001789,2]
[350318589,1737787840139,-500.0,0.0001789,2]
[350318590,1737787840148,-2932.3,0.0001789,2]
[350318591,1737787840158,-500.0,0.0001789,2]
[350318592,1737787840167,-500.0,0.0001789,2]
[350318593,1737787840177,-500.0,0.0001789,2]
[350318594,1737787840187,-2464.86,0.0001789,2]
[350318595,1737787840196,-500.0,0.0001789,2]
[350318596,1737787840205,-1600.49,0.0001789,2]
[350318597,1737787840214,-1459.91,0.0001789,2]
[350318598,1737787840224,-575.42940349,0.0001789,2]
[350318599,1737787840233,-964.73,0.0001789,2]
[350318601,1737787840243,-1066.79,0.0001789,2]
[350318602,1737787840254,-500.0,0.0001789,2]
[350318603,1737787840264,-500.0,0.0001789,2]
[350318604,1737787840274,-366.29650847,0.0001789,2]
[350318605,1737787840285,-500.0,0.0001789,2]
[350318606,1737787840295,-500.0,0.0001789,2]
[350318607,1737787840305,-500.0,0.0001789,2]
[350318608,1737787840315,-500.0,0.0001789,2]
[350318609,1737787840324,-500.0,0.0001789,2]
[350318610,1737787840334,-512.22909058,0.0001789,2]
[350318611,1737787840345,-661.88,0.0001789,2]
[350318612,1737787840355,-1591.71,0.0001789,2]
[350318613,1737787840365,-500.0,0.0001789,2]
[350318614,1737787840375,-500.0,0.0001789,2]
[350318615,1737787840385,-500.0,0.0001789,2]
[350318616,1737787840394,-1001.36,0.0001789,2]
[350318617,1737787840404,-3072.78,0.0001789,2]
[350318618,1737787840414,-3073.01,0.0001789,2]
[350318619,1737787840424,-1000.0,0.0001789,7]
[350318620,1737787840433,-500.0,0.0001789,2]
[350318621,1737787840444,-4204.43,0.0001789,2]
[350318622,1737787840454,-1257.63,0.0001789,2]
[350318623,1737787840464,-588.95290382,0.0001789,2]
[350318624,1737787840475,-468.57933467,0.0001789,2]
[350318625,1737787840484,-1488.89,0.0001789,2]
[350318626,1737787840494,-500.0,0.0001789,2]
[350318627,1737787840503,-500.0,0.0001789,2]
[350318628,1737787840514,-500.0,0.0001789,2]
[350318629,1737787840524,-500.0,0.0001789,2]
[350318630,1737787840533,-500.0,0.0001789,2]
[350318631,1737787840543,-500.0,0.0001789,2]
[350318632,1737787840554,-1408.82,0.0001789,2]
[350318633,1737787840563,-500.0,0.0001789,2]
[350318634,1737787840577,-614.16,0.0001789,2]
[350318635,1737787840589,-3105.46,0.0001789,2]
[350318636,1737787840599,-281.50991394,0.0001789,2]
[350318637,1737787840608,-2020.43,0.0001789,2]
[350318638,1737787840618,-712.15,0.0001789,2]
[350318639,1737787840627,-559.59,0.0001789,2]
[350318640,1737787840636,-1613.92,0.0001789,2]
[350318641,1737787840645,-623.22,0.0001789,2]
[350318642,1737787840654,-500.0,0.00017891,2]
[350318643,1737787840664,-588.88,0.00017891,2]
[350318644,1737787840674,-500.0,0.00017891,2]
[350318645,1737787840683,-1022.61,0.00017891,2]
[350318646,1737787840695,-542.42,0.00017891,2]
[350318647,1737787840705,-308.70379889,0.00017891,2]
[350318648,1737787840714,-663.4,0.00017891,2]
[350318649,1737787840723,-500.0,0.00017891,2]
[350318650,1737787840732,-1259.61,0.00017891,2]
[350318651,1737787840742,-792.15,0.00017891,2]
[350318652,1737787840751,-500.0,0.00017891,2]
[350318653,1737787840760,-888.66,0.00017891,2]
[350318654,1737787840770,-768.81,0.00017891,2]
[350318655,1737787840779,-500.0,0.00017891,2]
[350318656,1737787840789,-500.0,0.00017891,2]
[350318657,1737787840798,-839.02,0.00017891,2]
[350318658,1737787840807,-711.9,0.00017891,2]
[350318659,1737787840818,-500.0,0.00017891,2]
[350318660,1737787840827,-500.0,0.00017891,2]
[350318661,1737787840836,-500.0,0.00017891,2]
[350318662,1737787840846,-636.27,0.00017891,2]
[350318663,1737787840855,-579.68,0.00017891,2]
[350318664,1737787840865,-1192.01,0.00017891,2]
[350318665,1737787840874,-500.0,0.00017891,2]
[350318666,1737787840884,-151.0,0.00017891,2]
[350318667,1737787840894,-500.0,0.00017891,2]
[350318668,1737787840903,-739.92,0.00017891,2]
[350318669,1737787840912,-500.0,0.00017891,2]
[350318670,1737787840921,-780.46,0.00017891,2]
[350318671,1737787840931,-500.0,0.00017891,2]
[350318672,1737787840941,-500.0,0.00017891,2]
[350318673,1737787840951,-500.0,0.00017891,2]
[350318674,1737787840968,-500.0,0.00017891,2]
[350318675,1737787840984,-1159.62,0.00017891,2]
[350318676,1737787840993,-689.32,0.00017891,2]
[350318677,1737787841003,-1659.36,0.00017891,2]
[350318678,1737787841013,-500.0,0.00017891,2]
[350318679,1737787841022,-500.0,0.00017891,2]
[350318680,1737787841032,-500.0,0.00017891,2]
[350318681,1737787841042,-500.0,0.00017891,2]
[350318682,1737787841052,-578.0,0.00017891,2]
[350318683,1737787841062,-569.02653094,0.00017891,2]
[350318684,1737787841071,-500.0,0.00017891,2]
[350318685,1737787841081,-16899.84,0.00017891,2]
[350318686,1737787841091,-645.96,0.00017891,2]
[350318687,1737787841100,-500.0,0.00017891,2]
[350318688,1737787841110,-1423.31,0.00017891,2]
[350318689,1737787841120,-500.0,0.00017891,2]
[350318690,1737787841129,-13249.8,0.00017891,2]
[350318691,1737787841138,-791.94,0.00017891,2]
[350318692,1737787841148,-677.76,0.00017891,2]
[350318693,1737787841157,-500.0,0.00017891,2]
[350318694,1737787841167,-837.21,0.00017891,2]
[350318695,1737787841176,-500.0,0.00017891,2]
[350318696,1737787841187,-500.0,0.00017891,2]
[350318697,1737787841196,-151.0,0.00017891,2]
[350318698,1737787841205,-505.11,0.00017891,2]
[350318699,1737787841215,-500.0,0.00017891,2]
[350318700,1737787841224,-2878.71,0.00017891,2]
[350318701,1737787841234,-151.0,0.00017891,2]
[350318702,1737787841244,-151.0,0.00017891,2]
[350318703,1737787841255,-816.48,0.00017891,2]
[350318704,1737787841265,-1177.72,0.00017891,2]
[350318705,1737787841274,-500.0,0.00017891,2]
[350318706,1737787841284,-500.0,0.00017891,2]
[350318707,1737787841295,-47109.38,0.00017891,2]
[350318708,1737787841305,-2478.67,0.00017891,2]
[350318709,1737787841314,-286.24,0.00017891,2]
[350318710,1737787841324,-13638.69,0.00017891,2]
[350318711,1737787841334,-500.0,0.00017891,2]
[350318712,1737787841343,-1045.53,0.00017891,2]